{"text_format":"3","workbook":"xlsx","n_sheets":7,"sheets":["Poniedziałek","Wtorek","Środa","Czwartek","Piątek","Sobota","Niedziela"],"not_rendered":{"defined_names":21},"read":"whole","date_system":"1900"}

{"sheet":"Poniedziałek","index":0,"n_rows":10,"n_cols":13,"rows_kept":10,"merged":[[0,1,0,4],[1,2,1,4],[2,2,2,4]]}
[null,"Harmonogram pracy zmianowej"]
[null,"Na tydzień: ","Data"]
[null,"Nazwa działu: ","Imię i nazwisko"]
[]
[null,"PONIEDZIAŁEK","7:00","8:00","9:00","10:00","11:00","12:00","13:00","14:00","15:00","Zwolnienie lekarskie?","SUMA"]
[null,"Nazwa 1","kierownik","kierownik","kierownik","kierownik","kierownik","kierownik","kierownik","kierownik","kierownik",null,{"$f":"COUNTIF(Poniedziałek[[#This Row],[7:00]:[15:00]],\"*\")","v":9}]
[null,"Nazwa 2",null,"kasjer","kasjer","kasjer","kasjer",{"$nulls":5},{"$f":"COUNTIF(Poniedziałek[[#This Row],[7:00]:[15:00]],\"*\")","v":4}]
[null,"Nazwa 3",null,"recepcja","recepcja","recepcja","recepcja ","recepcja","recepcja","recepcja",null,null,{"$f":"COUNTIF(Poniedziałek[[#This Row],[7:00]:[15:00]],\"*\")","v":7}]
[null,"Nazwa 4",null,"recepcja","recepcja","recepcja","recepcja ","recepcja","recepcja","recepcja",null,null,{"$f":"COUNTIF(Poniedziałek[[#This Row],[7:00]:[15:00]],\"*\")","v":7}]
[null,"Nazwa 5",{"$nulls":9},"Zwolnienie lekarskie",{"$f":"COUNTIF(Poniedziałek[[#This Row],[7:00]:[15:00]],\"*\")","v":0}]

{"sheet":"Wtorek","index":1,"n_rows":10,"n_cols":13,"rows_kept":10,"merged":[[0,1,0,4],[1,2,1,4],[2,2,2,4]]}
[null,"Harmonogram pracy zmianowej"]
[null,"Na tydzień: ",{"$f":"Poniedziałek!C2","v":"Data"}]
[null,"Nazwa działu: ",{"$f":"Poniedziałek!C3","v":"Imię i nazwisko"}]
[]
[null,"WTOREK","7:00","8:00","9:00","10:00","11:00","12:00","13:00","14:00","15:00","Zwolnienie lekarskie?","SUMA"]
[null,"Nazwa 1","kierownik","kierownik","kierownik","kierownik","kierownik","kierownik","kierownik","kierownik","kierownik",null,{"$f":"COUNTIF(Wtorek[[#This Row],[7:00]:[15:00]],\"*\")","v":9}]
[null,"Nazwa 2",null,"kasjer","kasjer","kasjer","kasjer",{"$nulls":5},{"$f":"COUNTIF(Wtorek[[#This Row],[7:00]:[15:00]],\"*\")","v":4}]
[null,"Nazwa 3",null,"recepcja","recepcja","recepcja","recepcja ","recepcja","recepcja","recepcja",null,null,{"$f":"COUNTIF(Wtorek[[#This Row],[7:00]:[15:00]],\"*\")","v":7}]
[null,"Nazwa 4",null,"recepcja","recepcja","recepcja","recepcja ","recepcja","recepcja","recepcja",null,null,{"$f":"COUNTIF(Wtorek[[#This Row],[7:00]:[15:00]],\"*\")","v":7}]
[null,"Nazwa 5",{"$nulls":9},"Zwolnienie lekarskie",{"$f":"COUNTIF(Wtorek[[#This Row],[7:00]:[15:00]],\"*\")","v":0}]

{"sheet":"Środa","index":2,"n_rows":10,"n_cols":13,"rows_kept":10,"merged":[[0,1,0,4],[1,2,1,4],[2,2,2,4]]}
[null,"Harmonogram pracy zmianowej"]
[null,"Na tydzień: ",{"$f":"Poniedziałek!C2","v":"Data"}]
[null,"Nazwa działu: ",{"$f":"Poniedziałek!C3","v":"Imię i nazwisko"}]
[]
[null,"ŚRODA","7:00","8:00","9:00","10:00","11:00","12:00","13:00","14:00","15:00","Zwolnienie lekarskie?","SUMA"]
[null,"Nazwa 1","kierownik","kierownik","kierownik","kierownik","kierownik","kierownik","kierownik","kierownik","kierownik",null,{"$f":"COUNTIF(Środa[[#This Row],[7:00]:[15:00]],\"*\")","v":9}]
[null,"Nazwa 2",null,"kasjer","kasjer","kasjer","kasjer",{"$nulls":5},{"$f":"COUNTIF(Środa[[#This Row],[7:00]:[15:00]],\"*\")","v":4}]
[null,"Nazwa 3",null,"recepcja","recepcja","recepcja","recepcja ","recepcja","recepcja","recepcja",null,null,{"$f":"COUNTIF(Środa[[#This Row],[7:00]:[15:00]],\"*\")","v":7}]
[null,"Nazwa 4",null,"recepcja","recepcja","recepcja","recepcja ","recepcja","recepcja","recepcja",null,null,{"$f":"COUNTIF(Środa[[#This Row],[7:00]:[15:00]],\"*\")","v":7}]
[null,"Nazwa 5",{"$nulls":9},"Zwolnienie lekarskie",{"$f":"COUNTIF(Środa[[#This Row],[7:00]:[15:00]],\"*\")","v":0}]

{"sheet":"Czwartek","index":3,"n_rows":10,"n_cols":13,"rows_kept":10,"merged":[[0,1,0,4],[1,2,1,4],[2,2,2,4]]}
[null,"Harmonogram pracy zmianowej"]
[null,"Na tydzień: ",{"$f":"Poniedziałek!C2","v":"Data"}]
[null,"Nazwa działu: ",{"$f":"Poniedziałek!C3","v":"Imię i nazwisko"}]
[]
[null,"CZWARTEK","7:00","8:00","9:00","10:00","11:00","12:00","13:00","14:00","15:00","Zwolnienie lekarskie?","SUMA"]
[null,"Nazwa 1","kierownik","kierownik","kierownik","kierownik","kierownik","kierownik","kierownik","kierownik","kierownik",null,{"$f":"COUNTIF(Czwartek[[#This Row],[7:00]:[15:00]],\"*\")","v":9}]
[null,"Nazwa 2",null,"kasjer","kasjer","kasjer","kasjer",{"$nulls":5},{"$f":"COUNTIF(Czwartek[[#This Row],[7:00]:[15:00]],\"*\")","v":4}]
[null,"Nazwa 3",null,"recepcja","recepcja","recepcja","recepcja ","recepcja","recepcja","recepcja",null,null,{"$f":"COUNTIF(Czwartek[[#This Row],[7:00]:[15:00]],\"*\")","v":7}]
[null,"Nazwa 4",null,"recepcja","recepcja","recepcja","recepcja ","recepcja","recepcja","recepcja",null,null,{"$f":"COUNTIF(Czwartek[[#This Row],[7:00]:[15:00]],\"*\")","v":7}]
[null,"Nazwa 5",{"$nulls":9},"Zwolnienie lekarskie",{"$f":"COUNTIF(Czwartek[[#This Row],[7:00]:[15:00]],\"*\")","v":0}]

{"sheet":"Piątek","index":4,"n_rows":10,"n_cols":13,"rows_kept":10,"merged":[[0,1,0,4],[1,2,1,4],[2,2,2,4]]}
[null,"Harmonogram pracy zmianowej"]
[null,"Na tydzień: ",{"$f":"Poniedziałek!C2","v":"Data"}]
[null,"Nazwa działu: ",{"$f":"Poniedziałek!C3","v":"Imię i nazwisko"}]
[]
[null,"PIĄTEK","7:00","8:00","9:00","10:00","11:00","12:00","13:00","14:00","15:00","Zwolnienie lekarskie?","SUMA"]
[null,"Nazwa 1","kierownik","kierownik","kierownik","kierownik","kierownik","kierownik","kierownik","kierownik","kierownik",null,{"$f":"COUNTIF(Piątek[[#This Row],[7:00]:[15:00]],\"*\")","v":9}]
[null,"Nazwa 2",null,"kasjer","kasjer","kasjer","kasjer",{"$nulls":5},{"$f":"COUNTIF(Piątek[[#This Row],[7:00]:[15:00]],\"*\")","v":4}]
[null,"Nazwa 3",null,"recepcja","recepcja","recepcja","recepcja ","recepcja","recepcja","recepcja",null,null,{"$f":"COUNTIF(Piątek[[#This Row],[7:00]:[15:00]],\"*\")","v":7}]
[null,"Nazwa 4",null,"recepcja","recepcja","recepcja","recepcja ","recepcja","recepcja","recepcja",null,null,{"$f":"COUNTIF(Piątek[[#This Row],[7:00]:[15:00]],\"*\")","v":7}]
[null,"Nazwa 5",{"$nulls":9},"Zwolnienie lekarskie",{"$f":"COUNTIF(Piątek[[#This Row],[7:00]:[15:00]],\"*\")","v":0}]

{"sheet":"Sobota","index":5,"n_rows":10,"n_cols":13,"rows_kept":10,"merged":[[0,1,0,4],[1,2,1,4],[2,2,2,4]]}
[null,"Harmonogram pracy zmianowej"]
[null,"Na tydzień: ",{"$f":"Poniedziałek!C2","v":"Data"}]
[null,"Nazwa działu: ",{"$f":"Poniedziałek!C3","v":"Imię i nazwisko"}]
[]
[null,"SOBOTA","7:00","8:00","9:00","10:00","11:00","12:00","13:00","14:00","15:00","Zwolnienie lekarskie?","SUMA"]
[null,"Nazwa 1","kierownik","kierownik","kierownik","kierownik","kierownik","kierownik","kierownik","kierownik","kierownik",null,{"$f":"COUNTIF(Sobota[[#This Row],[7:00]:[15:00]],\"*\")","v":9}]
[null,"Nazwa 2",null,"kasjer","kasjer","kasjer","kasjer",{"$nulls":5},{"$f":"COUNTIF(Sobota[[#This Row],[7:00]:[15:00]],\"*\")","v":4}]
[null,"Nazwa 3",null,"recepcja","recepcja","recepcja","recepcja ","recepcja","recepcja","recepcja",null,null,{"$f":"COUNTIF(Sobota[[#This Row],[7:00]:[15:00]],\"*\")","v":7}]
[null,"Nazwa 4",null,"recepcja","recepcja","recepcja","recepcja ","recepcja","recepcja","recepcja",null,null,{"$f":"COUNTIF(Sobota[[#This Row],[7:00]:[15:00]],\"*\")","v":7}]
[null,"Nazwa 5",{"$nulls":9},"Zwolnienie lekarskie",{"$f":"COUNTIF(Sobota[[#This Row],[7:00]:[15:00]],\"*\")","v":0}]

{"sheet":"Niedziela","index":6,"n_rows":10,"n_cols":13,"rows_kept":10,"merged":[[0,1,0,4],[1,2,1,4],[2,2,2,4]]}
[null,"Harmonogram pracy zmianowej"]
[null,"Na tydzień: ",{"$f":"Poniedziałek!C2","v":"Data"}]
[null,"Nazwa działu: ",{"$f":"Poniedziałek!C3","v":"Imię i nazwisko"}]
[]
[null,"NIEDZIELA","7:00","8:00","9:00","10:00","11:00","12:00","13:00","14:00","15:00","Zwolnienie lekarskie?","SUMA"]
[null,"Nazwa 1","kierownik","kierownik","kierownik","kierownik","kierownik","kierownik","kierownik","kierownik","kierownik",null,{"$f":"COUNTIF(Niedziela[[#This Row],[7:00]:[15:00]],\"*\")","v":9}]
[null,"Nazwa 2",null,"kasjer","kasjer","kasjer","kasjer",{"$nulls":5},{"$f":"COUNTIF(Niedziela[[#This Row],[7:00]:[15:00]],\"*\")","v":4}]
[null,"Nazwa 3",null,"recepcja","recepcja","recepcja","recepcja ","recepcja","recepcja","recepcja",null,null,{"$f":"COUNTIF(Niedziela[[#This Row],[7:00]:[15:00]],\"*\")","v":7}]
[null,"Nazwa 4",null,"recepcja","recepcja","recepcja","recepcja ","recepcja","recepcja","recepcja",null,null,{"$f":"COUNTIF(Niedziela[[#This Row],[7:00]:[15:00]],\"*\")","v":7}]
[null,"Nazwa 5",{"$nulls":9},"Zwolnienie lekarskie",{"$f":"COUNTIF(Niedziela[[#This Row],[7:00]:[15:00]],\"*\")","v":0}]